[Event "Live Chess"]
[Site "Chess.com"]
[Date "2024.06.02"]
[Round "-"]
[White "Tatarinov_Maxim"]
[Black "booktrunk"]
[Result "1-0"]
[WhiteElo "2269"]
[BlackElo "1493"]
[TimeControl "300"]
[EndTime "0:56:53 PDT"]
[Termination "Tatarinov_Maxim won by resignation"]

1. Nf3 {[%clk 0:04:57.4]} 1... b6 {[%clk 0:04:54.6]} 2. e4 {[%clk 0:04:55.4]}
2... Bb7 {[%clk 0:04:51.4]} 3. d3 {[%clk 0:04:50.6]} 3... e6 {[%clk 0:04:49.2]}
4. Be2 {[%clk 0:04:48.1]} 4... h6 {[%clk 0:04:47.4]} 5. O-O {[%clk 0:04:47.2]}
5... Nf6 {[%clk 0:04:46.3]} 6. Nc3 {[%clk 0:04:46.5]} 6... Bb4 {[%clk
0:04:43.2]} 7. Bd2 {[%clk 0:04:44.4]} 7... Bxc3 {[%clk 0:04:42.4]} 8. Bxc3
{[%clk 0:04:43.4]} 8... d6 {[%clk 0:04:41.2]} 9. a4 {[%clk 0:04:19.4]} 9... e5
{[%clk 0:04:39.2]} 10. b3 {[%clk 0:04:18.4]} 10... Nc6 {[%clk 0:04:36.4]} 11.
Re1 {[%clk 0:04:07.3]} 11... Qd7 {[%clk 0:04:35.3]} 12. Bf1 {[%clk 0:04:06]}
12... Ne7 {[%clk 0:04:31.2]} 13. Bb2 {[%clk 0:03:36.7]} 13... O-O {[%clk
0:04:28.1]} 14. g3 {[%clk 0:03:31.4]} 14... c5 {[%clk 0:04:24.1]} 15. Bg2 {[%clk
0:03:29.7]} 15... Rab8 {[%clk 0:04:21.4]} 16. a5 {[%clk 0:03:05.5]} 16... Ng6
{[%clk 0:04:15.8]} 17. axb6 {[%clk 0:03:04.2]} 17... axb6 {[%clk 0:04:08]} 18.
Nd2 {[%clk 0:03:02.3]} 18... Bc6 {[%clk 0:04:04.3]} 19. Nc4 {[%clk 0:03:01.4]}
19... b5 {[%clk 0:04:00]} 20. Ne3 {[%clk 0:02:58.9]} 20... Ra8 {[%clk
0:03:55.8]} 21. Qd2 {[%clk 0:02:55]} 21... Rxa1 {[%clk 0:03:53.5]} 22. Rxa1
{[%clk 0:02:54.1]} 22... Ra8 {[%clk 0:03:52]} 23. Rxa8+ {[%clk 0:02:51.7]} 23...
Bxa8 {[%clk 0:03:50.2]} 24. Nf5 {[%clk 0:02:49.1]} 24... Kh7 {[%clk 0:03:44.9]}
25. h4 {[%clk 0:02:39.4]} 25... Ne7 {[%clk 0:03:38.7]} 26. Ne3 {[%clk
0:02:31.3]} 26... Bc6 {[%clk 0:03:30.4]} 27. Bc1 {[%clk 0:02:29.7]} 27... Nfg8
{[%clk 0:03:27.1]} 28. Kh2 {[%clk 0:02:27.1]} 28... Ng6 {[%clk 0:03:19.7]} 29.
Bh3 {[%clk 0:02:25.4]} 29... Qe7 {[%clk 0:03:17.7]} 30. Bf5 {[%clk 0:01:57.4]}
30... Bd7 {[%clk 0:03:12.3]} 31. h5 {[%clk 0:01:45]} 31... Bxf5 {[%clk
0:03:09.2]} 32. Nxf5 {[%clk 0:01:44.2]} 32... Qg5 {[%clk 0:03:00.3]} 33. Qxg5
{[%clk 0:01:41.4]} 33... hxg5 {[%clk 0:02:58.7]} 34. hxg6+ {[%clk 0:01:38.9]}
34... fxg6 {[%clk 0:02:57.7]} 35. Ne3 {[%clk 0:01:36.6]} 35... Kh6 {[%clk
0:02:53.7]} 36. Nd5 {[%clk 0:01:32.3]} 36... Ne7 {[%clk 0:02:50.5]} 37. Nxe7
{[%clk 0:01:30.8]} 1-0

[Event "Live Chess"]
[Site "Chess.com"]
[Date "2024.06.02"]
[Round "-"]
[White "Lukaskonstanta4"]
[Black "juniortay"]
[Result "0-1"]
[WhiteElo "913"]
[BlackElo "2397"]
[TimeControl "300"]
[EndTime "0:57:25 PDT"]
[Termination "juniortay won by resignation"]

1. d4 {[%clk 0:04:54.3]} 1... d5 {[%clk 0:04:58.1]} 2. Nf3 {[%clk 0:04:52.4]}
2... c5 {[%clk 0:04:56.7]} 3. dxc5 {[%clk 0:04:46.4]} 3... e6 {[%clk 0:04:55.4]}
4. e3 {[%clk 0:04:39]} 4... Bxc5 {[%clk 0:04:53.7]} 5. c4 {[%clk 0:04:35.3]}
5... Nf6 {[%clk 0:04:52.7]} 6. Nc3 {[%clk 0:04:30.9]} 6... O-O {[%clk
0:04:51.4]} 7. cxd5 {[%clk 0:04:25.3]} 7... exd5 {[%clk 0:04:50.1]} 8. Bd3
{[%clk 0:04:22]} 8... Nc6 {[%clk 0:04:48.6]} 9. O-O {[%clk 0:04:19.7]} 9... Re8
{[%clk 0:04:48.2]} 10. Nb5 {[%clk 0:04:05.2]} 10... Bg4 {[%clk 0:04:41.8]} 11.
h3 {[%clk 0:04:00.9]} 11... Bh5 {[%clk 0:04:40]} 12. b3 {[%clk 0:03:42.4]} 12...
a6 {[%clk 0:04:35.9]} 13. Nc3 {[%clk 0:03:32.6]} 13... Qd6 {[%clk 0:04:33.2]}
14. Bb2 {[%clk 0:03:28.9]} 14... Rad8 {[%clk 0:04:30.5]} 15. Be2 {[%clk
0:02:55.6]} 15... Ba7 {[%clk 0:04:27.7]} 16. Rc1 {[%clk 0:02:37.1]} 16... Bb8
{[%clk 0:04:25.5]} 17. g3 {[%clk 0:02:28.7]} 17... Rxe3 {[%clk 0:04:16.7]} 18.
Kg2 {[%clk 0:02:22.2]} 18... d4 {[%clk 0:03:47.5]} 19. Na4 {[%clk 0:01:56]}
19... Rde8 {[%clk 0:03:26.8]} 0-1

[Event "Live Chess"]
[Site "Chess.com"]
[Date "2024.06.02"]
[Round "-"]
[White "NAZRIZ1977"]
[Black "elephantgerrald"]
[Result "1-0"]
[WhiteElo "2127"]
[BlackElo "852"]
[TimeControl "300"]
[EndTime "0:58:12 PDT"]
[Termination "NAZRIZ1977 won by checkmate"]

1. c4 {[%clk 0:04:55.6]} 1... e5 {[%clk 0:04:57.7]} 2. g3 {[%clk 0:04:55.1]}
2... Nf6 {[%clk 0:04:56.7]} 3. Bg2 {[%clk 0:04:54.5]} 3... Nc6 {[%clk
0:04:55.8]} 4. Nc3 {[%clk 0:04:53.5]} 4... Bc5 {[%clk 0:04:55.1]} 5. e3 {[%clk
0:04:51.9]} 5... O-O {[%clk 0:04:54.2]} 6. a3 {[%clk 0:04:50.6]} 6... d6 {[%clk
0:04:53.5]} 7. Nge2 {[%clk 0:04:48.6]} 7... Bf5 {[%clk 0:04:52.6]} 8. d3 {[%clk
0:04:45.2]} 8... h6 {[%clk 0:04:48.4]} 9. O-O {[%clk 0:04:43.3]} 9... Bg4 {[%clk
0:04:47]} 10. h3 {[%clk 0:04:41.8]} 10... Bxe2 {[%clk 0:04:45.8]} 11. Qxe2
{[%clk 0:04:39.2]} 11... Qd7 {[%clk 0:04:42]} 12. Kh2 {[%clk 0:04:38.2]} 12...
Rfd8 {[%clk 0:04:32.6]} 13. b4 {[%clk 0:04:36.6]} 13... Nxb4 {[%clk 0:04:25.8]}
14. axb4 {[%clk 0:04:34.9]} 14... Bxb4 {[%clk 0:04:24]} 15. Nd5 {[%clk
0:04:28.4]} 15... Nxd5 {[%clk 0:04:22.4]} 16. cxd5 {[%clk 0:04:27.4]} 16... Bc3
{[%clk 0:04:20.7]} 17. Rb1 {[%clk 0:04:25.3]} 17... c6 {[%clk 0:04:16.3]} 18.
dxc6 {[%clk 0:04:23.2]} 18... bxc6 {[%clk 0:04:14.4]} 19. Qc2 {[%clk 0:04:22.3]}
19... Ba5 {[%clk 0:04:05.7]} 20. Qxc6 {[%clk 0:04:20.7]} 20... Qxc6 {[%clk
0:04:03.9]} 21. Bxc6 {[%clk 0:04:19.3]} 21... Rab8 {[%clk 0:04:00.6]} 22. Ba3
{[%clk 0:04:14.1]} 22... Rxb1 {[%clk 0:03:52.6]} 23. Rxb1 {[%clk 0:04:12.8]}
23... Rc8 {[%clk 0:03:49.2]} 24. Be4 {[%clk 0:04:06.4]} 24... g6 {[%clk
0:03:43.7]} 25. Bxd6 {[%clk 0:04:04.8]} 25... f5 {[%clk 0:03:41.8]} 26. Bd5+
{[%clk 0:04:03.6]} 26... Kg7 {[%clk 0:03:38.8]} 27. Bxe5+ {[%clk 0:04:01.5]}
27... Kh7 {[%clk 0:03:36.8]} 28. Rb7+ {[%clk 0:04:00.1]} 28... Rc7 {[%clk
0:03:28.6]} 29. Bxc7 {[%clk 0:03:58.4]} 29... Kg7 {[%clk 0:02:18.3]} 30. Bxa5+
{[%clk 0:03:55.7]} 30... Kf6 {[%clk 0:02:16.9]} 31. Bc3+ {[%clk 0:03:55.1]}
31... Kg5 {[%clk 0:02:15.5]} 32. h4+ {[%clk 0:03:50.6]} 32... Kh5 {[%clk
0:02:14]} 33. Bf3# {[%clk 0:03:48.7]} 1-0

[Event "Live Chess"]
[Site "Chess.com"]
[Date "2024.06.02"]
[Round "-"]
[White "KeithArkell"]
[Black "NottheBishopSacrifice"]
[Result "1/2-1/2"]
[WhiteElo "2409"]
[BlackElo "2309"]
[TimeControl "300"]
[EndTime "0:58:21 PDT"]
[Termination "Game drawn - insufficient material"]

1. d4 {[%clk 0:04:58.2]} 1... d5 {[%clk 0:04:50.8]} 2. Nf3 {[%clk 0:04:57.2]}
2... Nf6 {[%clk 0:04:46.5]} 3. c4 {[%clk 0:04:56.3]} 3... c6 {[%clk 0:04:45.9]}
4. Nc3 {[%clk 0:04:55]} 4... dxc4 {[%clk 0:04:45.1]} 5. a4 {[%clk 0:04:53.1]}
5... Bf5 {[%clk 0:04:44.5]} 6. Nh4 {[%clk 0:04:52.3]} 6... e6 {[%clk 0:04:44.2]}
7. Nxf5 {[%clk 0:04:51.1]} 7... exf5 {[%clk 0:04:44.1]} 8. Bg5 {[%clk
0:04:50.4]} 8... Bb4 {[%clk 0:04:42.6]} 9. Bxf6 {[%clk 0:04:49.5]} 9... Qxf6
{[%clk 0:04:41]} 10. e3 {[%clk 0:04:49]} 10... Nd7 {[%clk 0:04:40.1]} 11. Bxc4
{[%clk 0:04:48.1]} 11... O-O {[%clk 0:04:39.4]} 12. Qb3 {[%clk 0:04:47.1]} 12...
a5 {[%clk 0:04:38.1]} 13. O-O {[%clk 0:04:46.2]} 13... Rad8 {[%clk 0:04:34.8]}
14. Na2 {[%clk 0:04:44.9]} 14... Qd6 {[%clk 0:04:20.9]} 15. Nxb4 {[%clk
0:04:43.5]} 15... axb4 {[%clk 0:04:18.2]} 16. Rfd1 {[%clk 0:04:39.6]} 16... Nf6
{[%clk 0:04:15.8]} 17. a5 {[%clk 0:04:27.1]} 17... f4 {[%clk 0:04:02.8]} 18.
exf4 {[%clk 0:04:17.6]} 18... Qxf4 {[%clk 0:04:01.2]} 19. g3 {[%clk 0:04:16.6]}
19... Qd6 {[%clk 0:03:43.3]} 20. a6 {[%clk 0:04:04.6]} 20... bxa6 {[%clk
0:03:39.3]} 21. Rxa6 {[%clk 0:04:03.2]} 21... Nd5 {[%clk 0:03:38.8]} 22. Bxd5
{[%clk 0:04:01.8]} 22... Qxd5 {[%clk 0:03:38.7]} 23. Qxd5 {[%clk 0:03:53.9]}
23... cxd5 {[%clk 0:03:36.1]} 24. Rc1 {[%clk 0:03:50.8]} 24... Rc8 {[%clk
0:03:26.9]} 25. Rxc8 {[%clk 0:03:45.8]} 25... Rxc8 {[%clk 0:03:25]} 26. Rb6
{[%clk 0:03:45.4]} 26... Kf8 {[%clk 0:03:21.8]} 27. Rxb4 {[%clk 0:03:44.5]}
27... Rc2 {[%clk 0:03:07.4]} 28. Kg2 {[%clk 0:03:42.6]} 28... Ke7 {[%clk
0:03:04.1]} 29. Kf3 {[%clk 0:03:42]} 29... Ke6 {[%clk 0:03:03]} 30. Ke3 {[%clk
0:03:40.1]} 30... g6 {[%clk 0:03:01.5]} 31. g4 {[%clk 0:03:38.4]} 31... h5
{[%clk 0:02:56.7]} 32. h3 {[%clk 0:03:34.7]} 32... hxg4 {[%clk 0:02:53.9]} 33.
hxg4 {[%clk 0:03:34]} 33... g5 {[%clk 0:02:51.2]} 34. Rb6+ {[%clk 0:03:32.3]}
34... Ke7 {[%clk 0:02:49.4]} 35. f3 {[%clk 0:03:26]} 35... f6 {[%clk 0:02:45.2]}
36. b4 {[%clk 0:02:56.1]} 36... Rc3+ {[%clk 0:02:41.9]} 37. Ke2 {[%clk
0:02:55.6]} 37... Rb3 {[%clk 0:02:35.6]} 38. b5 {[%clk 0:02:55]} 38... Rb4
{[%clk 0:02:30.1]} 39. Kd3 {[%clk 0:02:50.6]} 39... Rb3+ {[%clk 0:02:29]} 40.
Kc2 {[%clk 0:02:49.8]} 40... Rb4 {[%clk 0:02:12.1]} 41. Kc3 {[%clk 0:02:47.9]}
41... Rc4+ {[%clk 0:02:11.1]} 42. Kd3 {[%clk 0:02:47.3]} 42... Rb4 {[%clk
0:02:09.9]} 43. Rb8 {[%clk 0:02:46.6]} 43... Rb3+ {[%clk 0:02:08.8]} 44. Kc2
{[%clk 0:02:45.4]} 44... Rxf3 {[%clk 0:02:05.3]} 45. Rh8 {[%clk 0:02:28.9]}
45... Kd7 {[%clk 0:01:56.1]} 46. Rh7+ {[%clk 0:02:17.7]} 46... Kc8 {[%clk
0:01:54.7]} 47. b6 {[%clk 0:02:15.5]} 47... Rg3 {[%clk 0:01:46.9]} 48. Rf7
{[%clk 0:01:58.7]} 48... Rxg4 {[%clk 0:01:43.8]} 49. Kc3 {[%clk 0:01:57.3]}
49... Rf4 {[%clk 0:01:30.7]} 50. Kb4 {[%clk 0:01:53.7]} 50... Rxd4+ {[%clk
0:01:27.9]} 51. Kc5 {[%clk 0:01:52.7]} 51... Rd1 {[%clk 0:01:26]} 52. Kc6 {[%clk
0:01:42.5]} 52... Rc1+ {[%clk 0:01:23.7]} 53. Kxd5 {[%clk 0:01:37.2]} 53... g4
{[%clk 0:01:18.7]} 54. Rxf6 {[%clk 0:01:33.8]} 54... g3 {[%clk 0:01:15.4]} 55.
Rg6 {[%clk 0:01:32.8]} 55... Rc3 {[%clk 0:01:13.2]} 56. Kd4 {[%clk 0:01:29.4]}
56... Rb3 {[%clk 0:01:11.9]} 57. Kc4 {[%clk 0:01:28.5]} 57... Rf3 {[%clk
0:01:10.9]} 58. Kc5 {[%clk 0:01:24.9]} 58... Kb7 {[%clk 0:01:10.5]} 59. Rg7+
{[%clk 0:01:24.1]} 59... Kb8 {[%clk 0:01:09.6]} 60. Kb5 {[%clk 0:01:20.5]} 60...
Rb3+ {[%clk 0:01:08.7]} 61. Kc5 {[%clk 0:01:18.4]} 61... Rc3+ {[%clk 0:01:07.5]}
62. Kb4 {[%clk 0:01:17.8]} 62... Rf3 {[%clk 0:01:06.3]} 63. Kb5 {[%clk
0:01:17.3]} 63... Rb3+ {[%clk 0:01:04.7]} 64. Kc6 {[%clk 0:01:16.8]} 64... Rc3+
{[%clk 0:01:03.9]} 65. Kd5 {[%clk 0:01:16]} 65... Rd3+ {[%clk 0:01:03]} 66. Kc4
{[%clk 0:01:15.1]} 66... Rf3 {[%clk 0:01:02.6]} 67. Kc5 {[%clk 0:01:14.2]} 67...
Rc3+ {[%clk 0:01:01.8]} 68. Kd4 {[%clk 0:01:12.2]} 68... Rb3 {[%clk 0:01:00.1]}
69. Kc4 {[%clk 0:01:10.7]} 69... Rxb6 {[%clk 0:00:58.2]} 70. Rxg3 {[%clk
0:01:09.7]} 70... Rc6+ {[%clk 0:00:57.7]} 71. Kd5 {[%clk 0:01:07.7]} 71... Kb7
{[%clk 0:00:56.9]} 72. Rb3+ {[%clk 0:01:06]} 72... Kc7 {[%clk 0:00:55.7]} 73.
Rb5 {[%clk 0:01:05.6]} 73... Rd6+ {[%clk 0:00:54.9]} 74. Kc4 {[%clk 0:01:04.9]}
74... Rc6+ {[%clk 0:00:54.4]} 75. Rc5 {[%clk 0:01:04.4]} 75... Rxc5+ {[%clk
0:00:53.6]} 76. Kxc5 {[%clk 0:01:03.9]} 1/2-1/2

[Event "Live Chess"]
[Site "Chess.com"]
[Date "2024.06.02"]
[Round "-"]
[White "JanMur7"]
[Black "jimwad"]
[Result "1-0"]
[WhiteElo "2254"]
[BlackElo "1327"]
[TimeControl "300"]
[EndTime "0:58:27 PDT"]
[Termination "JanMur7 won by resignation"]

1. c4 {[%clk 0:04:59.2]} 1... e5 {[%clk 0:04:58.6]} 2. Nc3 {[%clk 0:04:58.6]}
2... Nc6 {[%clk 0:04:56.9]} 3. Nf3 {[%clk 0:04:57.9]} 3... d6 {[%clk 0:04:52.4]}
4. d4 {[%clk 0:04:57.1]} 4... exd4 {[%clk 0:04:50.9]} 5. Nxd4 {[%clk 0:04:57]}
5... Nxd4 {[%clk 0:04:49.7]} 6. Qxd4 {[%clk 0:04:56.9]} 6... Nf6 {[%clk
0:04:47.7]} 7. g3 {[%clk 0:04:56.1]} 7... c6 {[%clk 0:04:44.5]} 8. Bg2 {[%clk
0:04:55.2]} 8... Be7 {[%clk 0:04:38.5]} 9. O-O {[%clk 0:04:53.6]} 9... O-O
{[%clk 0:04:36.8]} 10. Rd1 {[%clk 0:04:50.9]} 10... c5 {[%clk 0:04:20.1]} 11.
Qd3 {[%clk 0:04:41.9]} 11... Rb8 {[%clk 0:04:13.3]} 12. Bf4 {[%clk 0:04:38.9]}
12... b6 {[%clk 0:04:01.2]} 13. Bxd6 {[%clk 0:04:36.7]} 13... Bxd6 {[%clk
0:03:59.7]} 14. Qxd6 {[%clk 0:04:36.6]} 14... Qxd6 {[%clk 0:03:58.7]} 15. Rxd6
{[%clk 0:04:36.5]} 15... Bb7 {[%clk 0:03:56.1]} 16. Bxb7 {[%clk 0:04:34.5]}
16... Rxb7 {[%clk 0:03:55.2]} 17. Nd5 {[%clk 0:04:33.6]} 17... Nxd5 {[%clk
0:03:53.6]} 18. Rxd5 {[%clk 0:04:33.5]} 18... Re8 {[%clk 0:03:52.5]} 19. e3
{[%clk 0:04:32.6]} 19... Rbe7 {[%clk 0:03:50.7]} 20. Rad1 {[%clk 0:04:31.3]}
20... g6 {[%clk 0:03:49]} 21. Rd7 {[%clk 0:04:30.2]} 21... Rxd7 {[%clk 0:03:48]}
22. Rxd7 {[%clk 0:04:29.9]} 22... a6 {[%clk 0:03:46.5]} 23. Rb7 {[%clk
0:04:28.7]} 23... Re6 {[%clk 0:03:45.6]} 24. Ra7 {[%clk 0:04:27]} 24... a5
{[%clk 0:03:44.2]} 25. Rb7 {[%clk 0:04:25.8]} 25... Kg7 {[%clk 0:03:42.8]} 26.
Kg2 {[%clk 0:04:24.2]} 26... Kf6 {[%clk 0:03:42]} 27. h4 {[%clk 0:04:23.1]}
27... Ke5 {[%clk 0:03:40.6]} 28. Rxf7 {[%clk 0:04:20.7]} 28... h5 {[%clk
0:03:37.8]} 29. Rd7 {[%clk 0:04:18.6]} 29... Rd6 {[%clk 0:03:34.7]} 30. Rxd6
{[%clk 0:04:17.1]} 30... Kxd6 {[%clk 0:03:33.7]} 31. f4 {[%clk 0:04:16.7]} 31...
Ke6 {[%clk 0:03:32.8]} 32. e4 {[%clk 0:04:14.8]} 32... Kf6 {[%clk 0:03:31.5]}
33. a4 {[%clk 0:04:13.7]} 33... Ke6 {[%clk 0:03:29.7]} 34. Kf3 {[%clk
0:04:12.7]} 34... Kd6 {[%clk 0:03:27.2]} 35. g4 {[%clk 0:04:11.8]} 35... Ke6
{[%clk 0:03:22.4]} 36. gxh5 {[%clk 0:04:10.4]} 36... gxh5 {[%clk 0:03:21.2]} 37.
f5+ {[%clk 0:04:09.8]} 37... Ke5 {[%clk 0:03:20.3]} 38. Ke3 {[%clk 0:04:09.1]}
38... Kf6 {[%clk 0:03:17.2]} 39. Kf4 {[%clk 0:04:09]} 39... Kf7 {[%clk
0:03:15.1]} 40. e5 {[%clk 0:04:08]} 40... Ke7 {[%clk 0:03:13.9]} 41. e6 {[%clk
0:04:06.3]} 41... Kf6 {[%clk 0:03:11.4]} 42. Ke4 {[%clk 0:04:01.6]} 42... Ke7
{[%clk 0:03:10.5]} 43. Ke5 {[%clk 0:04:00.4]} 43... Ke8 {[%clk 0:03:09.3]} 44.
f6 {[%clk 0:03:59]} 44... Kf8 {[%clk 0:03:08.3]} 45. Kd6 {[%clk 0:03:58.1]}
45... Ke8 {[%clk 0:03:07.2]} 46. e7 {[%clk 0:03:56]} 1-0

[Event "Live Chess"]
[Site "Chess.com"]
[Date "2024.06.02"]
[Round "-"]
[White "WelshTiger"]
[Black "Sokolik_UA"]
[Result "1-0"]
[WhiteElo "2446"]
[BlackElo "811"]
[TimeControl "300"]
[EndTime "0:58:36 PDT"]
[Termination "WelshTiger won by resignation"]

1. e4 {[%clk 0:04:54.6]} 1... e6 {[%clk 0:04:59.6]} 2. d4 {[%clk 0:04:53.3]}
2... d5 {[%clk 0:04:59.1]} 3. Nd2 {[%clk 0:04:52.6]} 3... c5 {[%clk 0:04:58.3]}
4. exd5 {[%clk 0:04:50.9]} 4... Qxd5 {[%clk 0:04:47.3]} 5. dxc5 {[%clk 0:04:49]}
5... Bxc5 {[%clk 0:04:45]} 6. Ngf3 {[%clk 0:04:47.9]} 6... Nf6 {[%clk
0:04:43.2]} 7. Bc4 {[%clk 0:04:44.6]} 7... Qd6 {[%clk 0:04:40.6]} 8. Qe2 {[%clk
0:04:42.9]} 8... O-O {[%clk 0:04:38.3]} 9. O-O {[%clk 0:04:41.4]} 9... Nc6
{[%clk 0:04:37.6]} 10. c3 {[%clk 0:04:40.6]} 10... Bd7 {[%clk 0:04:33.9]} 11. a3
{[%clk 0:04:37]} 11... Na5 {[%clk 0:04:31.4]} 12. Ba2 {[%clk 0:04:33.1]} 12...
b5 {[%clk 0:04:27.4]} 13. b4 {[%clk 0:04:31.3]} 13... Ng4 {[%clk 0:04:23.5]} 14.
bxc5 {[%clk 0:04:26.3]} 14... Qxc5 {[%clk 0:04:21.7]} 15. Ne4 {[%clk 0:04:25.6]}
15... Qxc3 {[%clk 0:04:13.5]} 16. Nxc3 {[%clk 0:04:24.1]} 1-0

[Event "Live Chess"]
[Site "Chess.com"]
[Date "2024.06.02"]
[Round "-"]
[White "MagnersCarlsberg2870"]
[Black "ProfPoisson"]
[Result "1-0"]
[WhiteElo "1808"]
[BlackElo "1334"]
[TimeControl "300"]
[EndTime "0:58:38 PDT"]
[Termination "MagnersCarlsberg2870 won by resignation"]

1. d4 {[%clk 0:04:58]} 1... e6 {[%clk 0:04:56.9]} 2. Nd2 {[%clk 0:04:56.4]} 2...
f5 {[%clk 0:04:53.6]} 3. e4 {[%clk 0:04:55.6]} 3... fxe4 {[%clk 0:04:48.8]} 4.
Nxe4 {[%clk 0:04:54.9]} 4... Nf6 {[%clk 0:04:42.8]} 5. Bd3 {[%clk 0:04:52.1]}
5... b6 {[%clk 0:04:35.5]} 6. Nf3 {[%clk 0:04:51.1]} 6... Bb7 {[%clk 0:04:34.1]}
7. Nxf6+ {[%clk 0:04:45.8]} 7... Qxf6 {[%clk 0:04:31.7]} 8. Bg5 {[%clk
0:04:44.8]} 8... Qf7 {[%clk 0:04:12]} 9. Ne5 {[%clk 0:04:43.1]} 9... Bb4+ {[%clk
0:03:44.8]} 10. c3 {[%clk 0:04:41.6]} 10... O-O {[%clk 0:03:40.4]} 11. Nxf7
{[%clk 0:04:39.3]} 11... Bxc3+ {[%clk 0:03:36.3]} 12. bxc3 {[%clk 0:04:38.3]}
12... Rxf7 {[%clk 0:03:35.7]} 13. Qh5 {[%clk 0:04:36]} 1-0

[Event "Live Chess"]
[Site "Chess.com"]
[Date "2024.06.02"]
[Round "-"]
[White "MaksymYurii"]
[Black "Jadmis_2011"]
[Result "1-0"]
[WhiteElo "975"]
[BlackElo "1450"]
[TimeControl "300"]
[EndTime "0:58:43 PDT"]
[Termination "MaksymYurii won by checkmate"]

1. e4 {[%clk 0:04:57.2]} 1... c6 {[%clk 0:04:57.7]} 2. Nf3 {[%clk 0:04:55.7]}
2... d5 {[%clk 0:04:57.1]} 3. exd5 {[%clk 0:04:54.1]} 3... cxd5 {[%clk 0:04:57]}
4. Nc3 {[%clk 0:04:50]} 4... Nf6 {[%clk 0:04:53.4]} 5. d4 {[%clk 0:04:47.1]}
5... Bf5 {[%clk 0:04:52.8]} 6. Bf4 {[%clk 0:04:42]} 6... e6 {[%clk 0:04:49.9]}
7. Bb5+ {[%clk 0:04:38.1]} 7... Nc6 {[%clk 0:04:48.7]} 8. Ne5 {[%clk 0:04:31.4]}
8... Qb6 {[%clk 0:04:37]} 9. Bg5 {[%clk 0:03:54.1]} 9... Ne4 {[%clk 0:04:28.1]}
10. Bxc6+ {[%clk 0:03:50.3]} 10... bxc6 {[%clk 0:04:26.1]} 11. Nxe4 {[%clk
0:03:44.1]} 11... Bxe4 {[%clk 0:04:15.2]} 12. O-O {[%clk 0:03:36.5]} 12... f6
{[%clk 0:04:10.2]} 13. Qh5+ {[%clk 0:03:28.1]} 13... Ke7 {[%clk 0:03:58.2]} 14.
Bxf6+ {[%clk 0:03:19.5]} 14... gxf6 {[%clk 0:03:52.1]} 15. Qf7+ {[%clk
0:03:14.8]} 15... Kd8 {[%clk 0:03:38.9]} 16. Qd7# {[%clk 0:02:54.2]} 1-0

[Event "Live Chess"]
[Site "Chess.com"]
[Date "2024.06.02"]
[Round "-"]
[White "Greenbecker"]
[Black "shoomi777"]
[Result "1-0"]
[WhiteElo "1745"]
[BlackElo "1122"]
[TimeControl "300"]
[EndTime "0:58:48 PDT"]
[Termination "Greenbecker won by resignation"]

1. e4 {[%clk 0:04:55.5]} 1... c5 {[%clk 0:04:58.3]} 2. g3 {[%clk 0:04:53.7]}
2... e6 {[%clk 0:04:52.7]} 3. Bg2 {[%clk 0:04:52.8]} 3... g6 {[%clk 0:04:49.5]}
4. Ne2 {[%clk 0:04:52]} 4... Nc6 {[%clk 0:04:43.4]} 5. d4 {[%clk 0:04:50.7]}
5... cxd4 {[%clk 0:04:40.7]} 6. Nxd4 {[%clk 0:04:49.7]} 6... Bg7 {[%clk
0:04:33.4]} 7. Nxc6 {[%clk 0:04:47.7]} 7... bxc6 {[%clk 0:04:31.2]} 8. O-O
{[%clk 0:04:42.7]} 8... Qb6 {[%clk 0:04:17.9]} 9. Nc3 {[%clk 0:04:39.5]} 9...
Ne7 {[%clk 0:04:10.7]} 10. Qf3 {[%clk 0:04:14.2]} 10... O-O {[%clk 0:04:07]} 11.
b3 {[%clk 0:04:08.4]} 11... Bb7 {[%clk 0:04:04.7]} 12. Bb2 {[%clk 0:04:06]}
12... c5 {[%clk 0:03:43.5]} 13. Na4 {[%clk 0:04:01.8]} 13... Qc6 {[%clk
0:03:24]} 14. Bxg7 {[%clk 0:03:57.9]} 14... Kxg7 {[%clk 0:03:22.6]} 15. Qc3+
{[%clk 0:03:56]} 15... f6 {[%clk 0:03:05]} 16. Qxc5 {[%clk 0:03:53.2]} 16... Qa6
{[%clk 0:02:32.1]} 17. Qxe7+ {[%clk 0:03:49]} 17... Rf7 {[%clk 0:02:29.9]} 18.
Qc5 {[%clk 0:03:42]} 18... Rc8 {[%clk 0:02:26.8]} 19. Qe3 {[%clk 0:03:37.3]}
19... Rxc2 {[%clk 0:02:23.9]} 20. Nc5 {[%clk 0:03:30.7]} 20... Qc6 {[%clk
0:02:11.1]} 21. Nxb7 {[%clk 0:03:29.1]} 21... Qxb7 {[%clk 0:02:10.1]} 22. e5
{[%clk 0:03:24.8]} 22... Qc7 {[%clk 0:01:34.1]} 23. exf6+ {[%clk 0:03:20.2]}
23... Rxf6 {[%clk 0:01:33]} 24. Rac1 {[%clk 0:03:16]} 24... Rxc1 {[%clk
0:01:29]} 25. Rxc1 {[%clk 0:03:13.5]} 25... Qa5 {[%clk 0:01:14.5]} 26. a4 {[%clk
0:03:01.6]} 26... a6 {[%clk 0:01:11.8]} 27. Qd4 {[%clk 0:02:53]} 27... d5 {[%clk
0:01:01.9]} 28. b4 {[%clk 0:02:38]} 28... Qxa4 {[%clk 0:00:49.8]} 29. Rc7+
{[%clk 0:02:34]} 29... Kh6 {[%clk 0:00:49.5]} 30. Qxf6 {[%clk 0:02:30.4]} 30...
Qxb4 {[%clk 0:00:31.5]} 31. Qf4+ {[%clk 0:02:26.7]} 31... Qxf4 {[%clk
0:00:28.1]} 32. gxf4 {[%clk 0:02:25.4]} 1-0

[Event "Live Chess"]
[Site "Chess.com"]
[Date "2024.06.02"]
[Round "-"]
[White "AlanBstard10"]
[Black "Crowded_House"]
[Result "1/2-1/2"]
[WhiteElo "1198"]
[BlackElo "1663"]
[TimeControl "300"]
[EndTime "0:58:50 PDT"]
[Termination "Game drawn by agreement"]

1. b4 {[%clk 0:04:57]} 1... e6 {[%clk 0:04:57.7]} 2. Bb2 {[%clk 0:04:54.9]} 2...
Nf6 {[%clk 0:04:52.9]} 3. a3 {[%clk 0:04:51]} 3... Be7 {[%clk 0:04:51.7]} 4. e3
{[%clk 0:04:48.5]} 4... O-O {[%clk 0:04:51]} 5. Be2 {[%clk 0:04:47.7]} 5... d5
{[%clk 0:04:50.4]} 6. Nf3 {[%clk 0:04:46.3]} 6... Nbd7 {[%clk 0:04:49.6]} 7. O-O
{[%clk 0:04:45.7]} 7... b6 {[%clk 0:04:49]} 8. c4 {[%clk 0:04:44.5]} 8... Bb7
{[%clk 0:04:44]} 9. cxd5 {[%clk 0:04:43.2]} 9... Nxd5 {[%clk 0:04:40.9]} 10. Nc3
{[%clk 0:04:41.1]} 10... Bf6 {[%clk 0:04:34.4]} 11. Nxd5 {[%clk 0:04:40.1]}
11... Bxd5 {[%clk 0:04:32.2]} 12. Bxf6 {[%clk 0:04:38.5]} 12... Nxf6 {[%clk
0:04:29.6]} 13. Rc1 {[%clk 0:04:32.2]} 13... Rc8 {[%clk 0:04:21.2]} 14. Ne5
{[%clk 0:04:28.3]} 14... Nd7 {[%clk 0:04:09.2]} 15. Nxd7 {[%clk 0:04:24.6]}
15... Qxd7 {[%clk 0:04:07.7]} 16. d4 {[%clk 0:04:19.3]} 16... Bb7 {[%clk
0:03:54.1]} 17. Bf3 {[%clk 0:04:16.2]} 17... Bxf3 {[%clk 0:03:51.1]} 18. Qxf3
{[%clk 0:04:10.7]} 18... Qa4 {[%clk 0:03:46.3]} 19. e4 {[%clk 0:04:02]} 19... a5
{[%clk 0:03:40.9]} 20. bxa5 {[%clk 0:04:00.1]} 20... Qxa5 {[%clk 0:03:39.3]} 21.
Qc3 {[%clk 0:03:52.3]} 21... Qxc3 {[%clk 0:03:34.2]} 22. Rxc3 {[%clk 0:03:49.9]}
22... Ra8 {[%clk 0:03:23.2]} 23. d5 {[%clk 0:03:44.9]} 23... exd5 {[%clk
0:03:20.9]} 24. exd5 {[%clk 0:03:43.4]} 24... Rfd8 {[%clk 0:03:18.6]} 25. Rxc7
{[%clk 0:03:39.8]} 25... Rxd5 {[%clk 0:03:14.2]} 26. Ra1 {[%clk 0:03:24]} 26...
Rda5 {[%clk 0:03:12.7]} 27. Rb7 {[%clk 0:03:21.8]} 27... h6 {[%clk 0:03:05.2]}
28. h3 {[%clk 0:03:17.8]} 28... Rxa3 {[%clk 0:02:57.9]} 29. Rxa3 {[%clk
0:03:16.8]} 29... Rxa3 {[%clk 0:02:57.5]} 30. Rxb6 {[%clk 0:03:16]} 1/2-1/2